fUST/lending_fUST_20250624
["ID","MTS","AMOUNT","RATE_DAILY","PERIOD"]
[367207510,1750702241685,-460.0,0.00019586,2]
[367207511,1750702241694,-856.33,0.00019586,2]
[367207512,1750702241704,-460.0,0.00019586,2]
[367207513,1750702241713,-460.0,0.00019586,2]
[367207514,1750702241723,-460.0,0.00019586,2]
[367207515,1750702241733,-1474.59,0.00019586,2]
[367207516,1750702241742,-460.0,0.00019586,2]
[367207517,1750702241752,-460.0,0.00019586,2]
[367207518,1750702241763,-460.0,0.00019586,2]
[367207519,1750702241773,-460.0,0.00019586,2]
[367207520,1750702241783,-460.0,0.00019586,2]
[367207521,1750702241795,-1301.19,0.00019586,2]
[367207522,1750702241804,-460.0,0.00019586,2]
[367207523,1750702241813,-460.0,0.00019586,2]
[367207524,1750702241822,-460.0,0.00019586,2]
[367207525,1750702241831,-460.0,0.00019586,2]
[367207526,1750702241841,-508.04,0.00019586,2]
[367207527,1750702241851,-460.0,0.00019586,2]
[367207528,1750702241860,-460.0,0.00019586,2]
[367207529,1750702241869,-460.0,0.00019586,2]
[367207530,1750702241879,-460.0,0.00019586,2]
[367207531,1750702241889,-460.0,0.00019586,2]
[367207532,1750702241898,-460.0,0.00019586,2]
[367207533,1750702241909,-929.23,0.00019586,2]
[367207534,1750702241918,-460.0,0.00019586,2]
[367207535,1750702241927,-460.0,0.00019586,2]
[367207536,1750702241936,-735.13,0.00019586,2]
[367207537,1750702241946,-460.0,0.00019586,2]
[367207538,1750702241955,-587.75,0.00019586,2]
[367207539,1750702241964,-2121.29,0.00019586,2]
[367207540,1750702241973,-927.39,0.00019586,2]
[367207541,1750702241982,-594.5,0.00019586,2]
[367207542,1750702241992,-681.19,0.00019586,2]
[367207543,1750702242001,-2543.97,0.00019586,2]
[367207544,1750702242010,-460.0,0.00019586,2]
[367207545,1750702242019,-1189.72,0.00019586,2]
[367207546,1750702242029,-460.0,0.00019586,2]
[367207547,1750702242038,-1227.09,0.00019586,2]
[367207548,1750702242047,-773.52,0.00019586,2]
[367207549,1750702242056,-505.38,0.00019586,2]
[367207550,1750702242065,-430.0,0.00019586,2]
[367207551,1750702242074,-460.0,0.00019586,2]
[367207552,1750702242084,-151.0,0.00019586,2]
[367207553,1750702242093,-1234.97,0.00019586,2]
[367207554,1750702242102,-7516.55,0.00019586,2]
[367207555,1750702242111,-4782.92,0.00019586,2]
[367207556,1750702242120,-460.0,0.00019586,2]
[367207557,1750702242130,-2097.54,0.00019586,2]
[367207558,1750702242139,-937.39,0.00019586,2]
[367207559,1750702242148,-937.39,0.00019586,2]
[367207560,1750702242160,-1077.35,0.00019586,2]
[367207561,1750702242170,-794.81,0.00019586,2]
[367207562,1750702242179,-528.93270271,0.00019586,2]
[367207563,1750702242188,-460.0,0.00019586,2]
[367207564,1750702242198,-151.0,0.00019586,2]
[367207565,1750702242209,-560.47,0.00019586,2]
[367207566,1750702242218,-4182.16,0.00019586,2]
[367207567,1750702242228,-601.08904228,0.00019586,2]
[367207568,1750702242237,-791.3,0.00019586,2]
[367207569,1750702242247,-5445.98,0.00019586,2]
[367207570,1750702242257,-460.0,0.00019586,2]
[367207571,1750702242269,-460.0,0.00019586,2]
[367207572,1750702242285,-606.04,0.00019586,2]
[367207574,1750702242294,-151.0,0.00019586,2]
[367207575,1750702242303,-460.0,0.00019586,2]
[367207576,1750702242313,-1050.77,0.00019586,2]
[367207577,1750702242323,-162.280721,0.00019586,2]
[367207578,1750702242333,-1341.05,0.00019586,2]
[367207579,1750702242342,-9283.48,0.00019586,2]
[367207580,1750702242353,-196.06695826,0.00019586,2]
[367207581,1750702242363,-356.626254,0.00019586,2]
[367207582,1750702242372,-356.626254,0.00019586,2]
[367207583,1750702242382,-460.0,0.00019586,2]
[367207584,1750702242392,-460.0,0.00019586,2]
[367207585,1750702242401,-1949.77,0.00019586,2]
[367207586,1750702242416,-2323.85,0.00019587,2]
[367207587,1750702242425,-460.0,0.00019587,2]
[367207588,1750702242435,-705.33,0.00019587,2]
[367207590,1750702242445,-919.28,0.00019587,2]
[367207591,1750702242455,-460.0,0.00019587,2]
[367207592,1750702242465,-460.0,0.00019587,2]
[367207593,1750702242474,-460.0,0.00019587,2]
[367207595,1750702242484,-460.0,0.00019587,2]
[367207597,1750702242493,-460.0,0.00019587,2]
[367207598,1750702242503,-460.0,0.00019587,2]
[367207599,1750702242514,-460.0,0.00019587,2]
[367207600,1750702242524,-460.0,0.00019587,2]
[367207601,1750702242534,-460.0,0.00019587,2]
[367207602,1750702242544,-460.0,0.00019587,2]
[367207603,1750702242554,-460.0,0.00019587,2]
[367207604,1750702242564,-387.72556809,0.00019587,2]
[367207605,1750702242573,-460.0,0.00019587,2]
[367207606,1750702242583,-662.4,0.00019587,2]
[367207607,1750702242593,-413.42126971,0.00019587,2]
[367207608,1750702242602,-460.0,0.00019587,2]
[367207609,1750702242611,-460.0,0.00019587,2]
[367207610,1750702242621,-937.39,0.00019587,2]
[367207611,1750702242631,-937.39,0.00019587,2]
[367207612,1750702242640,-440.87311069,0.00019587,2]
[367207614,1750702242649,-460.0,0.00019587,2]
[367207616,1750702242663,-460.0,0.00019587,2]
[367207618,1750702242673,-503.42,0.00019587,2]
[367207621,1750702242683,-460.0,0.00019587,2]
[367207624,1750702242693,-674.65,0.00019587,2]
[367207627,1750702242702,-460.0,0.00019588,2]
[367207629,1750702242712,-498.37,0.00019588,2]
[367207631,1750702242722,-460.0,0.00019588,2]
[367207634,1750702242731,-460.0,0.00019588,2]
[367207636,1750702242740,-461.87243434,0.00019588,2]
[367207637,1750702242751,-547.081886,0.00019588,2]
[367207639,1750702242761,-460.0,0.00019588,2]
[367207641,1750702242771,-460.0,0.00019588,2]
[367207643,1750702242780,-224.95438206,0.00019588,2]
[367207645,1750702242790,-460.0,0.00019588,2]
[367207646,1750702242799,-460.0,0.00019588,2]
[367207648,1750702242809,-460.0,0.00019588,2]
[367207650,1750702242818,-493.35,0.00019588,2]
[367207651,1750702242827,-460.0,0.00019588,2]
[367207653,1750702242837,-276.96288107,0.00019588,2]
[367207655,1750702242846,-715.51,0.00019588,2]
[367207656,1750702242856,-460.0,0.00019588,2]
[367207657,1750702242867,-460.0,0.00019588,2]
[367207658,1750702242877,-393.37662037,0.00019588,2]
[367207659,1750702242887,-460.0,0.00019588,2]
[367207660,1750702242896,-460.0,0.00019588,2]
[367207661,1750702242906,-460.0,0.00019588,2]
[367207662,1750702242920,-460.0,0.00019588,2]
[367207663,1750702242930,-1726.48,0.00019588,2]
[367207664,1750702242940,-460.0,0.00019588,2]
[367207665,1750702242950,-924.54,0.00019588,2]
[367207666,1750702242960,-460.0,0.00019588,2]
[367207667,1750702242971,-432.77074467,0.00019588,2]
[367207668,1750702242980,-460.0,0.00019588,2]
[367207669,1750702242990,-460.0,0.00019588,2]
[367207670,1750702242999,-460.0,0.00019588,2]
[367207671,1750702243009,-460.0,0.00019588,2]
[367207672,1750702243018,-460.0,0.00019588,2]
[367207673,1750702243028,-584.57928508,0.00019588,2]
[367207674,1750702243037,-500.0,0.00019588,2]
[367207675,1750702243046,-500.0,0.00019588,2]
[367207676,1750702243056,-560.77469284,0.00019588,2]
[367207677,1750702243066,-460.0,0.00019588,2]
[367207678,1750702243076,-460.0,0.00019588,2]
[367207679,1750702243085,-460.0,0.00019588,2]
[367207680,1750702243094,-499.53,0.00019588,2]
[367207681,1750702243103,-460.0,0.00019588,2]
[367207682,1750702243113,-460.0,0.00019588,2]
[367207683,1750702243122,-460.0,0.00019588,2]
[367207684,1750702243132,-500.0,0.00019588,2]
[367207685,1750702243142,-460.0,0.00019588,2]
[367207686,1750702243152,-714.86,0.00019588,2]
[367207687,1750702243166,-460.0,0.00019588,2]
[367207688,1750702243176,-460.0,0.00019588,2]
[367207689,1750702243186,-460.0,0.00019588,2]
[367207690,1750702243196,-460.0,0.00019588,2]
[367207691,1750702243205,-646.96,0.00019588,2]
[367207692,1750702243215,-474.52452538,0.00019588,2]
[367207693,1750702243225,-460.0,0.00019588,2]
[367207694,1750702243234,-513.8729578,0.00019588,2]
[367207696,1750702243245,-819.18,0.00019588,2]
[367207697,1750702243255,-460.0,0.00019588,2]
[367207698,1750702243265,-590.17,0.00019588,2]
[367207699,1750702243277,-197.34770729,0.00019588,2]
[367207700,1750702243289,-836.54,0.00019588,2]
[367207701,1750702243482,-151.0,0.00019588,2]
[367207702,1750702243493,-461.66089486,0.00019588,2]
[367207703,1750702243505,-460.0,0.00019588,2]
[367207704,1750702243515,-197.58010068,0.00019588,2]
[367207705,1750702243525,-460.0,0.00019588,2]
[367207706,1750702243535,-460.0,0.00019588,2]
[367207707,1750702243544,-460.0,0.00019588,2]
[367207708,1750702243556,-213.09996486,0.00019588,2]
[367207709,1750702243566,-460.0,0.00019588,2]
[367207710,1750702243576,-460.0,0.00019588,2]
[367207711,1750702243586,-460.0,0.00019588,2]
[367207712,1750702243596,-1511.56,0.00019588,2]
[367207713,1750702243606,-460.0,0.00019588,2]
[367207714,1750702243617,-460.0,0.00019588,2]
[367207715,1750702243627,-460.0,0.00019588,2]
[367207716,1750702243637,-460.0,0.00019588,2]
[367207717,1750702243647,-460.0,0.00019588,2]
[367207718,1750702243658,-460.0,0.00019588,2]
[367207719,1750702243669,-460.0,0.00019588,2]
[367207720,1750702243679,-508.53310427,0.00019588,2]
[367207721,1750702243689,-460.0,0.00019588,2]
[367207722,1750702243699,-460.0,0.00019588,2]
[367207723,1750702243709,-151.0,0.00019588,2]
[367207724,1750702243719,-460.0,0.00019588,2]
[367207725,1750702243730,-6333.44,0.00019588,2]
[367207726,1750702243739,-460.0,0.00019588,2]
[367207727,1750702243749,-707.3,0.00019588,2]
[367207728,1750702243759,-151.0,0.00019588,2]
[367207729,1750702243768,-735.42,0.00019588,2]
[367207730,1750702243778,-402.544214,0.00019588,2]
[367207731,1750702243788,-151.0,0.00019588,2]
[367207732,1750702243798,-402.544214,0.00019588,2]
[367207733,1750702243808,-1601.96,0.00019588,2]
[367207734,1750702243817,-151.0,0.00019588,2]
[367207735,1750702243827,-151.0,0.00019588,2]
[367207736,1750702243837,-151.0,0.00019588,2]
[367207737,1750702243847,-460.0,0.00019588,2]
[367207738,1750702243857,-460.0,0.00019588,2]
[367207739,1750702243867,-153.504504,0.00019588,2]
[367207740,1750702243877,-460.0,0.00019588,2]
[367207741,1750702243887,-937.39,0.00019588,2]
[367207742,1750702243896,-937.39,0.00019588,2]
[367207743,1750702243907,-937.39,0.00019588,2]
[367207744,1750702243921,-183.723989,0.00019588,2]
[367207745,1750702243931,-1171.058408,0.00019588,2]
[367207746,1750702243940,-183.723989,0.00019588,2]
[367207747,1750702243950,-1171.058408,0.00019588,2]
[367207748,1750702243960,-565.73563015,0.00019588,2]
[367207749,1750702243970,-151.578217,0.00019588,2]
[367207750,1750702243980,-151.0,0.00019588,2]
[367207751,1750702243989,-460.0,0.00019588,2]
[367207752,1750702243998,-460.0,0.00019588,2]
[367207753,1750702244009,-151.0,0.00019588,2]
[367207754,1750702244019,-460.0,0.00019588,2]
[367207755,1750702244029,-460.0,0.00019588,2]
[367207756,1750702244039,-356.626254,0.00019588,2]
[367207757,1750702244049,-356.626254,0.00019588,2]
[367207758,1750702244058,-460.0,0.00019588,2]
[367207759,1750702244068,-278.98,0.00019589,2]
[367207760,1750702244077,-151.0,0.00019589,2]
[367207761,1750702244086,-151.0,0.00019589,2]
[367207762,1750702244096,-151.982218,0.00019589,2]
[367207763,1750702244105,-205.184865,0.00019589,2]
[367207764,1750702244115,-205.184865,0.00019589,2]
[367207765,1750702244124,-151.0,0.00019589,2]
[367207766,1750702244134,-151.0,0.00019589,2]
[367207767,1750702244144,-151.0,0.00019589,2]
[367207768,1750702244153,-151.0,0.00019589,2]
[367207769,1750702244165,-151.0,0.00019589,2]
[367207770,1750702244175,-303.644146,0.00019589,2]
[367207771,1750702244184,-303.644146,0.00019589,2]
[367207772,1750702244194,-151.0,0.00019589,2]
[367207773,1750702244204,-151.0,0.00019589,2]
[367207774,1750702244214,-151.0,0.00019589,2]
[367207775,1750702244224,-151.0,0.00019589,2]
[367207776,1750702244233,-151.0,0.00019589,2]
[367207777,1750702244242,-151.0,0.00019589,2]
[367207778,1750702244252,-937.39,0.00019589,2]
[367207779,1750702244261,-937.39,0.00019589,2]
[367207780,1750702244271,-937.39,0.00019589,2]
[367207781,1750702244283,-937.39,0.00019589,2]
[367207782,1750702244293,-937.39,0.00019589,2]
[367207783,1750702244302,-937.39,0.00019589,2]
[367207784,1750702244312,-937.46894436,0.00019589,2]
[367207785,1750702244322,-5197.87030009,0.0001959,2]
[367207786,1750702244331,-22060.19075416,0.0001959,2]
[367207787,1750702244340,-460.0,0.0001959,2]
[367207788,1750702244350,-460.0,0.0001959,2]
[367207789,1750702244360,-370.81391833,0.0001959,2]
[367207790,1750702244369,-348.40770727,0.0001959,2]
[367207791,1750702244379,-430.0,0.0001959,2]
[367207792,1750702244388,-420.0,0.0001959,2]
[367207793,1750702244398,-471.79044387,0.0001959,2]
[367207794,1750702244410,-460.0,0.0001959,2]
[367207795,1750702244420,-976.76,0.0001959,2]
[367207796,1750702244430,-460.0,0.0001959,2]
[367207797,1750702244439,-1385.55,0.0001959,2]
[367207798,1750702244449,-460.0,0.0001959,2]
[367207799,1750702244459,-460.0,0.0001959,2]
[367207800,1750702244470,-3985.75,0.0001959,2]
[367207801,1750702244480,-541.28,0.0001959,2]
[367207802,1750702244489,-233.86255829,0.0001959,2]
[367207803,1750702244499,-1120.09,0.0001959,2]
[367207804,1750702244509,-460.0,0.0001959,2]
[367207805,1750702244519,-460.0,0.0001959,2]
[367207806,1750702244528,-460.0,0.0001959,2]
[367207807,1750702244537,-857.29,0.0001959,2]
[367207808,1750702244547,-460.0,0.0001959,2]
[367207809,1750702244557,-460.0,0.0001959,2]
[367207810,1750702244567,-460.0,0.0001959,2]
[367207811,1750702244576,-518.26,0.0001959,2]
[367207812,1750702244586,-758.45,0.0001959,2]
[367207813,1750702244595,-460.0,0.0001959,2]
[367207814,1750702244605,-1000.0,0.0001959,2]
[367207815,1750702244614,-460.0,0.0001959,2]
[367207816,1750702244624,-460.0,0.0001959,2]
[367207817,1750702244634,-745.09,0.0001959,2]
[367207818,1750702244643,-151.0,0.0001959,2]
[367207819,1750702244653,-460.0,0.0001959,2]
[367207820,1750702244664,-460.0,0.0001959,2]
[367207821,1750702244674,-151.0,0.0001959,2]
[367207822,1750702244684,-460.0,0.0001959,2]
[367207823,1750702244693,-151.0,0.0001959,2]
[367207824,1750702244703,-897.24,0.0001959,2]
[367207825,1750702244713,-460.0,0.0001959,2]
[367207826,1750702244722,-460.0,0.0001959,2]
[367207827,1750702244732,-1055.93,0.0001959,2]
[367207828,1750702244742,-996.88,0.0001959,2]
[367207829,1750702244751,-183.723989,0.0001959,2]
[367207830,1750702244760,-1171.058408,0.0001959,2]
[367207831,1750702244770,-183.723989,0.0001959,2]
[367207832,1750702244779,-1171.058408,0.0001959,2]
[367207833,1750702244788,-460.0,0.0001959,2]
[367207834,1750702244798,-823.757199,0.0001959,2]
[367207835,1750702244807,-785.22,0.0001959,2]
[367207836,1750702244817,-648.84,0.0001959,2]
[367207837,1750702244827,-842.28,0.0001959,2]
[367207838,1750702244836,-1150.01,0.0001959,2]
[367207839,1750702244846,-182.83099,0.00019591,2]
[367207840,1750702244857,-1000.0,0.00019591,2]
[367207841,1750702244868,-1000.0,0.00019591,2]
[367207842,1750702244878,-1000.0,0.00019591,2]
[367207843,1750702244887,-1125.8,0.00019591,2]
[367207844,1750702244897,-460.0,0.00019592,2]
[367207845,1750702244907,-460.0,0.00019592,2]
[367207846,1750702244917,-730.14,0.00019592,2]
[367207847,1750702244927,-151.0,0.00019592,2]
[367207848,1750702244936,-592.57,0.00019592,2]
[367207849,1750702244946,-151.0,0.00019592,2]
[367207850,1750702244955,-460.0,0.00019592,2]
[367207851,1750702244966,-460.0,0.00019592,2]
[367207852,1750702244976,-460.0,0.00019592,2]
[367207853,1750702244986,-727.02,0.00019592,2]
[367207854,1750702244995,-151.0,0.00019592,2]
[367207855,1750702245005,-460.0,0.00019592,2]
[367207856,1750702245015,-460.0,0.00019592,2]
[367207857,1750702245025,-460.0,0.00019592,2]
[367207858,1750702245034,-151.0,0.00019592,2]
[367207859,1750702245044,-460.0,0.00019592,2]
[367207860,1750702245053,-184.157617,0.00019592,2]
[367207861,1750702245063,-460.0,0.00019592,2]
[367207862,1750702245072,-460.0,0.00019592,2]
[367207863,1750702245082,-460.0,0.00019592,2]
[367207864,1750702245092,-460.0,0.00019592,2]
[367207865,1750702245101,-151.0,0.00019592,2]
[367207866,1750702245111,-151.0,0.00019592,2]
[367207867,1750702245120,-205.184865,0.00019592,2]
[367207868,1750702245130,-205.184865,0.00019592,2]
[367207869,1750702245139,-151.0,0.00019592,2]
[367207870,1750702245149,-1168.664466,0.00019592,2]
[367207871,1750702245159,-151.0,0.00019592,2]
[367207872,1750702245169,-151.0,0.00019592,2]
[367207873,1750702245179,-1168.664466,0.00019592,2]
[367207874,1750702245189,-151.0,0.00019592,2]
[367207875,1750702245199,-303.644146,0.00019592,2]
[367207876,1750702245209,-303.644146,0.00019592,2]
[367207877,1750702245218,-151.0,0.00019592,2]
[367207878,1750702245228,-151.0,0.00019592,2]
[367207879,1750702245238,-151.0,0.00019592,2]
[367207880,1750702245247,-402.544214,0.00019592,2]
[367207881,1750702245256,-402.544214,0.00019592,2]
[367207882,1750702245266,-151.0,0.00019592,2]
[367207884,1750702245279,-356.626254,0.00019592,2]
[367207885,1750702245289,-356.626254,0.00019592,2]
[367207886,1750702245299,-437.24886619,0.00019596,2]
[367207887,1750702245309,-255.0,0.0001961,2]
[367207888,1750702245319,-255.0,0.00019615,2]
[367207890,1750702245330,-747.87638257,0.00019619,2]
[367207892,1750702245340,-255.0,0.0001962,2]
[367207894,1750702245351,-255.0,0.00019625,2]
[367207895,1750702245361,-151.0,0.00019626,2]
[367207897,1750702245372,-360.84979995,0.0001963,2]
[367207899,1750702245382,-1136.80729033,0.00019653,2]
[367207901,1750702245391,-44482.19322045,0.00019661,2]
[367207902,1750702245401,-460.0,0.00019662,2]
[367207904,1750702245413,-460.0,0.00019662,2]
[367207905,1750702245423,-460.0,0.00019662,2]
[367207906,1750702245433,-553.72,0.00019662,2]
[367207907,1750702245443,-653.33,0.00019662,2]
[367207908,1750702245453,-677.47,0.00019662,2]
[367207909,1750702245463,-934.6,0.00019662,2]
[367207910,1750702245473,-928.71,0.00019662,2]
[367207911,1750702245482,-6794.43,0.00019662,2]
[367207912,1750702245492,-460.0,0.00019662,2]
[367207913,1750702245502,-586.68,0.00019662,2]
[367207914,1750702245511,-674.21,0.00019662,2]
[367207915,1750702245522,-460.0,0.00019662,2]
[367207916,1750702245532,-6749.54,0.00019662,2]
[367207917,1750702245541,-460.0,0.00019662,2]
[367207918,1750702245551,-1068.57,0.00019662,2]
[367207919,1750702245561,-460.0,0.00019662,2]
[367207920,1750702245571,-460.0,0.00019662,2]
[367207921,1750702245582,-460.0,0.00019663,2]
[367207922,1750702245592,-460.0,0.00019663,2]
[367207924,1750702245603,-460.0,0.00019663,2]
[367207925,1750702245614,-1342.47,0.00019663,2]
[367207926,1750702245624,-460.0,0.00019663,2]
[367207927,1750702245635,-554.93,0.00019663,2]
[367207928,1750702245645,-606.87,0.00019663,2]
[367207929,1750702245655,-543.92,0.00019663,2]
[367207930,1750702245670,-869.83,0.00019663,2]
[367207931,1750702245680,-486.25,0.00019663,2]
[367207932,1750702245690,-829.58,0.00019663,2]
[367207933,1750702245700,-200.05788437,0.00019663,2]
[367207934,1750702245710,-374.15175073,0.00019663,2]
[367207935,1750702245721,-460.0,0.00019663,2]
[367207936,1750702245731,-460.0,0.00019663,2]
[367207937,1750702245741,-5481.59,0.00019663,2]
[367207938,1750702245752,-460.0,0.00019663,2]
[367207939,1750702245763,-460.0,0.00019663,2]
[367207940,1750702245773,-460.0,0.00019663,2]
[367207941,1750702245783,-460.0,0.00019663,2]
[367207942,1750702245793,-460.0,0.00019663,2]
[367207943,1750702245802,-1991.7,0.00019663,2]
[367207944,1750702245812,-585.11,0.00019663,2]
[367207945,1750702245821,-1023.28,0.00019663,2]
[367207946,1750702245830,-460.0,0.00019663,2]
[367207947,1750702245840,-4573.78,0.00019663,2]
[367207948,1750702245849,-460.0,0.00019663,2]
[367207949,1750702245859,-514.23,0.00019663,2]
[367207951,1750702245870,-4501.74,0.00019663,2]
[367207952,1750702245925,-460.0,0.00019663,2]
[367207953,1750702245935,-7625.39,0.00019663,2]
[367207954,1750702245945,-1430.08,0.00019663,2]
[367207955,1750702245954,-356.98,0.00019663,2]
[367207956,1750702245963,-1777.53,0.00019663,2]
[367207957,1750702245973,-460.0,0.00019663,2]
[367207958,1750702245982,-3427.78,0.00019663,2]
[367207959,1750702245991,-7632.03,0.00019663,2]
[367207960,1750702246000,-460.0,0.00019663,2]
[367207961,1750702246010,-3044.38,0.00019663,2]
[367207962,1750702246020,-568.48,0.00019663,2]
[367207963,1750702246029,-2095.8,0.00019663,2]
[367207964,1750702246039,-460.0,0.00019663,2]
[367207965,1750702246048,-460.0,0.00019663,2]
[367207966,1750702246057,-420.0,0.00019663,2]
[367207967,1750702246067,-460.0,0.00019663,2]
[367207968,1750702246076,-731.7107051,0.000197,2]
[367207970,1750702246085,-460.81322347,0.00019718,2]
[367207971,1750702246095,-317.0,0.00019718,2]
[367207972,1750702246104,-317.0,0.00019718,2]
[367207973,1750702246113,-317.0,0.00019718,2]
[367207974,1750702246122,-317.0,0.00019718,2]
[367207975,1750702246131,-317.0,0.00019718,2]
[367207976,1750702246140,-317.0,0.00019718,2]
[367207977,1750702246149,-317.0,0.00019718,2]
[367207978,1750702246160,-317.0,0.00019718,2]
[367207979,1750702246171,-317.0,0.00019718,2]
[367207980,1750702246180,-317.0,0.00019718,2]
[367207981,1750702246189,-324.34362012,0.00019718,2]
[367207982,1750702246199,-151.0,0.00019718,2]
[367207983,1750702246208,-151.0,0.00019718,2]
[367207984,1750702246217,-151.0,0.00019735,2]
[367207985,1750702246226,-200.774812,0.00019735,2]
[367207986,1750702246235,-200.774812,0.00019735,2]
[367207987,1750702246244,-194.186962,0.00019735,2]
[367207988,1750702246253,-194.186962,0.00019735,2]
[367207989,1750702246262,-747.87638257,0.00019758,2]
[367207990,1750702246273,-151.0,0.000198,2]
[367207991,1750702246283,-1506.17288203,0.00019853,2]
[367207992,1750702246293,-604.38,0.00019855,2]
[367207993,1750702246304,-460.0,0.00019855,2]
[367207994,1750702246314,-698.94,0.00019855,2]
[367207995,1750702246324,-460.0,0.00019855,2]
[367207996,1750702246334,-460.0,0.00019855,2]
[367207997,1750702246343,-460.0,0.00019855,2]
[367207998,1750702246353,-460.0,0.00019855,2]
[367207999,1750702246362,-460.0,0.00019855,2]
[367208000,1750702246372,-460.0,0.00019855,2]
[367208001,1750702246381,-376.00838907,0.00019855,2]
[367208002,1750702246391,-460.0,0.00019855,2]
[367208003,1750702246400,-460.0,0.00019855,2]
[367208004,1750702246412,-620.81,0.00019855,2]
[367208005,1750702246422,-460.0,0.00019855,2]
[367208006,1750702246432,-576.95,0.00019855,2]
[367208007,1750702246442,-470.15438063,0.00019855,2]
[367208008,1750702246452,-621.2,0.00019855,2]
[367208009,1750702246462,-526.53,0.00019855,2]
[367208010,1750702246472,-460.0,0.00019855,2]
[367208011,1750702246482,-460.0,0.00019855,2]
[367208012,1750702246492,-460.0,0.00019855,2]
[367208013,1750702246501,-460.0,0.00019855,2]
[367208014,1750702246511,-460.0,0.00019855,2]
[367208015,1750702246521,-460.0,0.00019855,2]
[367208016,1750702246531,-517.27,0.00019855,2]
[367208017,1750702246540,-460.0,0.00019855,2]
[367208018,1750702246551,-460.0,0.00019855,2]
[367208019,1750702246560,-460.0,0.00019855,2]
[367208020,1750702246570,-540.64722024,0.00019855,2]
[367208021,1750702246580,-460.0,0.00019855,2]
[367208022,1750702246590,-1387.87,0.00019855,2]
[367208023,1750702246599,-460.0,0.00019855,2]
[367208024,1750702246608,-900.37,0.00019855,2]
[367208025,1750702246618,-460.0,0.00019855,2]
[367208026,1750702246628,-460.0,0.00019855,2]
[367208027,1750702246637,-460.0,0.00019855,2]
[367208028,1750702246647,-562.89,0.00019855,2]
[367208029,1750702246656,-1989.83,0.00019855,2]
[367208030,1750702246668,-460.0,0.00019855,2]
[367208031,1750702246677,-460.0,0.00019855,2]
[367208032,1750702246687,-460.0,0.00019855,2]
[367208033,1750702246696,-852.85,0.00019855,2]
[367208034,1750702246706,-488.85,0.00019855,2]
[367208035,1750702246715,-460.0,0.00019855,2]
[367208036,1750702246724,-525.2,0.00019855,2]
[367208037,1750702246733,-460.0,0.00019855,2]
[367208038,1750702246743,-430.0,0.00019855,2]
[367208039,1750702246753,-696.37,0.00019855,2]
[367208040,1750702246762,-460.0,0.00019855,2]
[367208041,1750702246771,-460.0,0.00019855,2]
[367208042,1750702246781,-460.0,0.00019855,2]
[367208043,1750702246790,-458.86380977,0.00019855,2]
[367208044,1750702246799,-151.0,0.00019855,2]
[367208045,1750702246809,-460.0,0.00019855,2]
[367208046,1750702246819,-460.0,0.00019855,2]
[367208047,1750702246829,-515.33689198,0.00019855,2]